[Event "Late-Titled-Tuesday-Blitz-March-19-2024"]
[Site "Chess.com"]
[Date "2024.03.19"]
[Round "1"]
[White "Alex_Sahakyan2006"]
[Black "Practical-Play"]
[Result "1-0"]
[WhiteElo "2811"]
[BlackElo "2487"]
[TimeControl "180+1"]
[EndTime "14:06:51 PDT"]
[Termination "Alex_Sahakyan2006 won on time"]

1. e4 {[%clk 0:03:00.9]} 1... e5 {[%clk 0:02:58.3]} 2. Nf3 {[%clk 0:03:00.8]}
2... Nc6 {[%clk 0:02:57.7]} 3. Nc3 {[%clk 0:02:59.8]} 3... Nf6 {[%clk
0:02:57.4]} 4. d4 {[%clk 0:02:58.8]} 4... exd4 {[%clk 0:02:56.3]} 5. Nxd4 {[%clk
0:02:59.7]} 5... Bc5 {[%clk 0:02:54.3]} 6. Nb3 {[%clk 0:02:58.3]} 6... Bb6
{[%clk 0:02:51.9]} 7. Qe2 {[%clk 0:02:53.9]} 7... d6 {[%clk 0:02:36.9]} 8. Be3
{[%clk 0:02:53]} 8... Bxe3 {[%clk 0:02:32.3]} 9. Qxe3 {[%clk 0:02:53.9]} 9...
O-O {[%clk 0:02:30.9]} 10. O-O-O {[%clk 0:02:53.6]} 10... a5 {[%clk 0:02:30.1]}
11. a4 {[%clk 0:02:53.1]} 11... Be6 {[%clk 0:02:28.9]} 12. f3 {[%clk 0:02:49.7]}
12... Re8 {[%clk 0:02:15.4]} 13. Nd4 {[%clk 0:02:43.6]} 13... Nxd4 {[%clk
0:02:11.2]} 14. Qxd4 {[%clk 0:02:44.5]} 14... Nd7 {[%clk 0:02:09.7]} 15. Bb5
{[%clk 0:02:42.5]} 15... Qg5+ {[%clk 0:02:06.2]} 16. Kb1 {[%clk 0:02:42.1]}
16... Red8 {[%clk 0:01:50.8]} 17. h4 {[%clk 0:02:38.6]} 17... Qc5 {[%clk
0:01:28]} 18. Qd2 {[%clk 0:02:30]} 18... c6 {[%clk 0:01:22.3]} 19. Be2 {[%clk
0:02:28.9]} 19... Ne5 {[%clk 0:01:16.4]} 20. h5 {[%clk 0:02:28.3]} 20... b5
{[%clk 0:00:45.2]} 21. h6 {[%clk 0:02:20.3]} 21... b4 {[%clk 0:00:19.7]} 22. Qg5
{[%clk 0:02:13.3]} 22... Ng6 {[%clk 0:00:19.5]} 23. Qxc5 {[%clk 0:02:12.9]}
23... dxc5 {[%clk 0:00:20.4]} 24. Na2 {[%clk 0:02:12.3]} 24... Nf4 {[%clk
0:00:17.7]} 25. Ba6 {[%clk 0:01:35.7]} 25... gxh6 {[%clk 0:00:10.1]} 26. Bb7
{[%clk 0:01:31.8]} 26... Rab8 {[%clk 0:00:07.4]} 27. Bxc6 {[%clk 0:01:30.4]}
27... c4 {[%clk 0:00:03.7]} 28. Nc1 {[%clk 0:01:29.5]} 28... Kg7 {[%clk
0:00:02.8]} 29. g3 {[%clk 0:01:27.4]} 29... Ng6 {[%clk 0:00:02.4]} 30. f4 {[%clk
0:01:27.5]} 30... Ne7 {[%clk 0:00:02.4]} 31. Bb5 {[%clk 0:01:26.6]} 31... Bg4
{[%clk 0:00:02.5]} 32. Rdf1 {[%clk 0:01:22.4]} 32... c3 {[%clk 0:00:01.4]} 33.
bxc3 {[%clk 0:01:19.4]} 33... bxc3 {[%clk 0:00:02.3]} 34. f5 {[%clk 0:01:19.8]}
34... Ng8 {[%clk 0:00:02.9]} 35. e5 {[%clk 0:01:19.1]} 35... f6 {[%clk
0:00:01.5]} 36. Rf4 {[%clk 0:01:13]} 36... h5 {[%clk 0:00:01.5]} 37. Nd3 {[%clk
0:01:10.9]} 37... fxe5 {[%clk 0:00:01.6]} 38. Nxe5 {[%clk 0:01:11.8]} 38... Nf6
{[%clk 0:00:02]} 39. Nc6 {[%clk 0:01:11.1]} 39... Rdc8 {[%clk 0:00:01.3]} 40.
Nxb8 {[%clk 0:01:11]} 40... Rxb8 {[%clk 0:00:02.2]} 41. Re1 {[%clk 0:01:10]}
41... Nd5 {[%clk 0:00:02.5]} 42. Rd4 {[%clk 0:01:08.4]} 42... Nb4 {[%clk
0:00:02.5]} 43. Re3 {[%clk 0:00:56.7]} 43... Bxf5 {[%clk 0:00:02.5]} 44. Rxc3
{[%clk 0:00:57]} 1-0

[Event "Late-Titled-Tuesday-Blitz-March-19-2024"]
[Site "Chess.com"]
[Date "2024.03.19"]
[Round "1"]
[White "Yan_Dyomin2010"]
[Black "semchik73"]
[Result "1-0"]
[WhiteElo "2742"]
[BlackElo "2425"]
[TimeControl "180+1"]
[EndTime "14:06:52 PDT"]
[Termination "Yan_Dyomin2010 won by resignation"]

1. e4 {[%clk 0:03:00.9]} 1... Nf6 {[%clk 0:02:59.7]} 2. e5 {[%clk 0:03:00.1]}
2... Nd5 {[%clk 0:03:00]} 3. d4 {[%clk 0:03:00.6]} 3... d6 {[%clk 0:03:00.4]} 4.
Bc4 {[%clk 0:02:59.4]} 4... dxe5 {[%clk 0:02:59.3]} 5. dxe5 {[%clk 0:02:59.2]}
5... e6 {[%clk 0:03:00]} 6. Nf3 {[%clk 0:02:56.6]} 6... c6 {[%clk 0:02:57.1]} 7.
O-O {[%clk 0:02:56.1]} 7... Be7 {[%clk 0:02:56.9]} 8. Qe2 {[%clk 0:02:54.1]}
8... O-O {[%clk 0:02:56.5]} 9. Rd1 {[%clk 0:02:53.5]} 9... Qc7 {[%clk
0:02:53.6]} 10. Nbd2 {[%clk 0:02:49.6]} 10... Nf4 {[%clk 0:02:49.4]} 11. Qe4
{[%clk 0:02:44.4]} 11... Ng6 {[%clk 0:02:49.3]} 12. Nf1 {[%clk 0:02:40.9]} 12...
Nd7 {[%clk 0:02:47.7]} 13. Bf4 {[%clk 0:02:37.2]} 13... b5 {[%clk 0:02:26.5]}
14. Be2 {[%clk 0:02:27.5]} 14... Nxf4 {[%clk 0:02:08.3]} 15. Qxf4 {[%clk
0:02:27.3]} 15... f6 {[%clk 0:02:08]} 16. Qg3 {[%clk 0:02:23.8]} 16... Nxe5
{[%clk 0:02:06.1]} 17. Nxe5 {[%clk 0:02:23.5]} 17... Qxe5 {[%clk 0:02:07]} 18.
Qxe5 {[%clk 0:02:23.2]} 18... fxe5 {[%clk 0:02:07.9]} 19. Bf3 {[%clk 0:02:23.2]}
19... Bc5 {[%clk 0:02:03.4]} 20. Ne3 {[%clk 0:02:17.8]} 20... Bb7 {[%clk
0:01:54.4]} 21. Rd7 {[%clk 0:02:17]} 21... Rf7 {[%clk 0:01:54.4]} 22. Rad1
{[%clk 0:02:14.4]} 22... Raf8 {[%clk 0:01:51.4]} 23. Ng4 {[%clk 0:02:08.9]}
23... Bd4 {[%clk 0:01:41.4]} 24. Rxf7 {[%clk 0:02:08.2]} 24... Rxf7 {[%clk
0:01:40.1]} 25. c3 {[%clk 0:02:08.7]} 25... h5 {[%clk 0:01:05.4]} 26. cxd4
{[%clk 0:02:05.7]} 26... hxg4 {[%clk 0:01:05.4]} 27. Bxg4 {[%clk 0:02:06.6]}
27... Bc8 {[%clk 0:00:47.2]} 28. dxe5 {[%clk 0:02:05.3]} 28... Rf8 {[%clk
0:00:47.5]} 29. Rd6 {[%clk 0:02:03]} 29... Kf7 {[%clk 0:00:45.2]} 30. g3 {[%clk
0:02:01.5]} 30... Ke7 {[%clk 0:00:39.7]} 31. h4 {[%clk 0:01:58.1]} 31... Bd7
{[%clk 0:00:36.8]} 32. f4 {[%clk 0:01:54.7]} 32... a5 {[%clk 0:00:36.8]} 33. Kf2
{[%clk 0:01:54.7]} 33... b4 {[%clk 0:00:35.1]} 34. Ke3 {[%clk 0:01:54.6]} 34...
c5 {[%clk 0:00:33.6]} 35. Be2 {[%clk 0:01:54.2]} 35... Rc8 {[%clk 0:00:31.5]}
36. Bc4 {[%clk 0:01:53.7]} 36... a4 {[%clk 0:00:31.5]} 37. Kf3 {[%clk
0:01:50.6]} 37... a3 {[%clk 0:00:26]} 38. b3 {[%clk 0:01:48.3]} 38... Bc6+
{[%clk 0:00:23]} 39. Ke3 {[%clk 0:01:47.9]} 39... Bd5 {[%clk 0:00:22.5]} 40.
Bxd5 {[%clk 0:01:47.5]} 40... exd5 {[%clk 0:00:23.4]} 41. Rxd5 {[%clk 0:01:48]}
41... c4 {[%clk 0:00:23.6]} 42. bxc4 {[%clk 0:01:46.2]} 42... Rxc4 {[%clk
0:00:22.8]} 43. Rb5 {[%clk 0:01:33.1]} 43... Kd7 {[%clk 0:00:20.8]} 44. g4
{[%clk 0:01:31.8]} 44... Kc6 {[%clk 0:00:20.4]} 45. Rb8 {[%clk 0:01:31.2]} 45...
Kc7 {[%clk 0:00:20.6]} 46. Rg8 {[%clk 0:01:31.8]} 46... Rc2 {[%clk 0:00:16.2]}
47. Rxg7+ {[%clk 0:01:31.8]} 47... Kc6 {[%clk 0:00:16.3]} 48. Ra7 {[%clk
0:01:26.9]} 48... Rxa2 {[%clk 0:00:15.5]} 49. e6 {[%clk 0:01:27.5]} 49... Ra1
{[%clk 0:00:15.2]} 50. Kf2 {[%clk 0:01:16.3]} 50... Kd6 {[%clk 0:00:13.1]} 51.
e7 {[%clk 0:01:15.6]} 51... Ra2+ {[%clk 0:00:12.9]} 52. Kf3 {[%clk 0:01:15.1]}
52... Ra1 {[%clk 0:00:11.7]} 53. e8=Q {[%clk 0:01:14.7]} 53... a2 {[%clk
0:00:12.3]} 54. Qd8+ {[%clk 0:01:14]} 54... Kc5 {[%clk 0:00:12.7]} 55. Qc7+
{[%clk 0:01:13.2]} 55... Kd4 {[%clk 0:00:13.1]} 56. Qg7+ {[%clk 0:01:12.5]}
56... Kc4 {[%clk 0:00:13.3]} 57. Qxa1 {[%clk 0:01:13.4]} 1-0

[Event "Late-Titled-Tuesday-Blitz-March-19-2024"]
[Site "Chess.com"]
[Date "2024.03.19"]
[Round "1"]
[White "sjoerd893"]
[Black "mind1mover"]
[Result "0-1"]
[WhiteElo "2489"]
[BlackElo "2822"]
[TimeControl "180+1"]
[EndTime "14:06:58 PDT"]
[Termination "mind1mover won by resignation"]

1. e4 {[%clk 0:03:00.9]} 1... e5 {[%clk 0:02:59.9]} 2. Nf3 {[%clk 0:03:00.5]}
2... Nc6 {[%clk 0:03:00]} 3. Bc4 {[%clk 0:03:00.9]} 3... Bc5 {[%clk 0:02:57.3]}
4. c3 {[%clk 0:03:00.5]} 4... Qf6 {[%clk 0:02:55.3]} 5. d3 {[%clk 0:02:58.4]}
5... d6 {[%clk 0:02:55.3]} 6. Nbd2 {[%clk 0:02:53.7]} 6... Nge7 {[%clk
0:02:51.5]} 7. h3 {[%clk 0:02:49]} 7... Be6 {[%clk 0:02:49.3]} 8. b4 {[%clk
0:02:45.8]} 8... Bb6 {[%clk 0:02:48.5]} 9. a4 {[%clk 0:02:46.1]} 9... a5 {[%clk
0:02:46.1]} 10. b5 {[%clk 0:02:42.2]} 10... Nb8 {[%clk 0:02:45.2]} 11. O-O
{[%clk 0:02:32.7]} 11... Nd7 {[%clk 0:02:40.6]} 12. Bxe6 {[%clk 0:02:29.1]}
12... fxe6 {[%clk 0:02:41.5]} 13. Nc4 {[%clk 0:02:28.3]} 13... h6 {[%clk
0:02:40.8]} 14. Be3 {[%clk 0:02:17.4]} 14... Bxe3 {[%clk 0:02:27.1]} 15. Nxe3
{[%clk 0:02:18.3]} 15... O-O {[%clk 0:02:20.2]} 16. d4 {[%clk 0:02:02.1]} 16...
Ng6 {[%clk 0:02:16.3]} 17. Qd2 {[%clk 0:01:43.6]} 17... Nf4 {[%clk 0:02:14.7]}
18. Kh2 {[%clk 0:01:20.6]} 18... Nxg2 {[%clk 0:02:01.8]} 19. Nxg2 {[%clk
0:00:45]} 19... Qxf3 {[%clk 0:02:00.9]} 20. Rae1 {[%clk 0:00:42.4]} 20... Rf7
{[%clk 0:01:57.7]} 21. Re3 {[%clk 0:00:41.5]} 21... Qh5 {[%clk 0:01:58]} 22. Rg3
{[%clk 0:00:39.8]} 22... Kh8 {[%clk 0:01:54.3]} 23. dxe5 {[%clk 0:00:34.2]}
23... Nxe5 {[%clk 0:01:54.5]} 24. f4 {[%clk 0:00:28.9]} 24... Raf8 {[%clk
0:01:50.4]} 25. Qd4 {[%clk 0:00:16.3]} 25... Ng6 {[%clk 0:01:46.6]} 26. f5
{[%clk 0:00:14.9]} 26... exf5 {[%clk 0:01:41.3]} 27. exf5 {[%clk 0:00:14]} 27...
Rxf5 {[%clk 0:01:40]} 28. Rxf5 {[%clk 0:00:12.5]} 28... Rxf5 {[%clk 0:01:40.9]}
29. Qe4 {[%clk 0:00:07.7]} 29... Rg5 {[%clk 0:01:35.1]} 30. Rxg5 {[%clk
0:00:05.3]} 30... Qxg5 {[%clk 0:01:35.3]} 31. Qxb7 {[%clk 0:00:06.2]} 31... Qe5+
{[%clk 0:01:32.3]} 32. Kg1 {[%clk 0:00:05.6]} 32... Qc5+ {[%clk 0:01:32.5]} 33.
Kh1 {[%clk 0:00:05.4]} 33... Qxc3 {[%clk 0:01:25.4]} 34. Qc8+ {[%clk 0:00:05.1]}
34... Kh7 {[%clk 0:01:26]} 35. Qf5 {[%clk 0:00:05.8]} 35... Qa1+ {[%clk
0:01:22]} 36. Kh2 {[%clk 0:00:04.9]} 36... Qe5+ {[%clk 0:01:18.9]} 37. Qxe5
{[%clk 0:00:05.1]} 37... Nxe5 {[%clk 0:01:19.8]} 38. Nf4 {[%clk 0:00:04.4]}
38... c6 {[%clk 0:01:11.6]} 39. b6 {[%clk 0:00:02.6]} 39... Nd7 {[%clk
0:01:12.1]} 40. b7 {[%clk 0:00:03.2]} 40... Nb8 {[%clk 0:01:12.3]} 41. Kg3
{[%clk 0:00:03.1]} 41... Kg8 {[%clk 0:01:12]} 42. Kf3 {[%clk 0:00:03.6]} 42...
Kf7 {[%clk 0:01:12.6]} 43. Ke4 {[%clk 0:00:03.7]} 43... Ke7 {[%clk 0:01:13]} 44.
Nd3 {[%clk 0:00:03.8]} 44... Kd7 {[%clk 0:01:12.8]} 45. Kf5 {[%clk 0:00:04.4]}
45... Kc7 {[%clk 0:01:13.1]} 46. Kg6 {[%clk 0:00:05]} 46... c5 {[%clk
0:01:13.1]} 47. Kxg7 {[%clk 0:00:05.3]} 47... c4 {[%clk 0:01:13.8]} 48. Nb2
{[%clk 0:00:05]} 48... d5 {[%clk 0:01:13.1]} 49. Kxh6 {[%clk 0:00:05.3]} 49...
Kxb7 {[%clk 0:01:13.6]} 50. Kg5 {[%clk 0:00:05.6]} 50... Kc6 {[%clk 0:01:12.9]}
51. Kf5 {[%clk 0:00:05.9]} 51... Kc5 {[%clk 0:01:13.3]} 52. h4 {[%clk
0:00:06.1]} 52... Kd4 {[%clk 0:01:13.5]} 53. h5 {[%clk 0:00:06.1]} 53... c3
{[%clk 0:01:14.4]} 54. Nd1 {[%clk 0:00:04.8]} 54... c2 {[%clk 0:01:14.6]} 55.
Nc3 {[%clk 0:00:04.6]} 55... Kxc3 {[%clk 0:01:14.4]} 0-1

[Event "Late-Titled-Tuesday-Blitz-March-19-2024"]
[Site "Chess.com"]
[Date "2024.03.19"]
[Round "1"]
[White "MightyMike_009"]
[Black "Misterfox120"]
[Result "1-0"]
[WhiteElo "2764"]
[BlackElo "2453"]
[TimeControl "180+1"]
[EndTime "14:06:58 PDT"]
[Termination "MightyMike_009 won by resignation"]

1. d4 {[%clk 0:03:00.9]} 1... d5 {[%clk 0:02:59.2]} 2. c4 {[%clk 0:03:00.4]}
2... e6 {[%clk 0:02:59.9]} 3. Nc3 {[%clk 0:03:00.7]} 3... a6 {[%clk 0:02:59.9]}
4. cxd5 {[%clk 0:02:57.5]} 4... exd5 {[%clk 0:03:00.8]} 5. Nf3 {[%clk
0:02:57.9]} 5... c6 {[%clk 0:03:00.8]} 6. Bf4 {[%clk 0:02:56.3]} 6... Bd6 {[%clk
0:03:01.1]} 7. e3 {[%clk 0:02:56]} 7... Ne7 {[%clk 0:03:00.3]} 8. Bd3 {[%clk
0:02:54.9]} 8... O-O {[%clk 0:02:58]} 9. Qc2 {[%clk 0:02:53.8]} 9... g6 {[%clk
0:02:55.1]} 10. Bg5 {[%clk 0:02:44.6]} 10... f6 {[%clk 0:02:52.9]} 11. Bh6
{[%clk 0:02:44.4]} 11... Re8 {[%clk 0:02:52.3]} 12. O-O-O {[%clk 0:02:41.9]}
12... Bf5 {[%clk 0:02:52]} 13. e4 {[%clk 0:02:36.6]} 13... dxe4 {[%clk
0:02:36.7]} 14. Nxe4 {[%clk 0:02:37.5]} 14... Nd5 {[%clk 0:02:16.7]} 15. Kb1
{[%clk 0:02:35.7]} 15... Nb4 {[%clk 0:02:14.6]} 16. Qb3+ {[%clk 0:02:33.3]}
16... Be6 {[%clk 0:02:10.6]} 17. Bc4 {[%clk 0:02:25.3]} 17... Bxc4 {[%clk
0:02:04.8]} 18. Qxc4+ {[%clk 0:02:26.2]} 18... Nd5 {[%clk 0:01:53.5]} 19. Rhe1
{[%clk 0:02:25.8]} 19... Be7 {[%clk 0:01:36.5]} 20. Nc3 {[%clk 0:02:15.9]} 20...
Qd6 {[%clk 0:01:33.2]} 21. Ne4 {[%clk 0:01:54.9]} 21... Qd8 {[%clk 0:01:18]} 22.
Re2 {[%clk 0:01:53.1]} 22... Nd7 {[%clk 0:01:14.7]} 23. Rde1 {[%clk 0:01:47.6]}
23... Bf8 {[%clk 0:00:44.7]} 24. Bxf8 {[%clk 0:01:21.3]} 24... Rxf8 {[%clk
0:00:45.6]} 25. Nd6 {[%clk 0:01:07.4]} 25... Nb6 {[%clk 0:00:32.4]} 26. Qc5
{[%clk 0:01:07.8]} 26... Qd7 {[%clk 0:00:20.3]} 27. Nd2 {[%clk 0:00:43]} 27...
Rad8 {[%clk 0:00:18.6]} 28. N6c4 {[%clk 0:00:32.6]} 28... Nxc4 {[%clk
0:00:15.4]} 29. Qxc4 {[%clk 0:00:30]} 29... Rfe8 {[%clk 0:00:15.2]} 30. Ne4
{[%clk 0:00:28.7]} 30... Kg7 {[%clk 0:00:10.4]} 31. Ka1 {[%clk 0:00:26.1]} 31...
f5 {[%clk 0:00:10.6]} 32. Nc5 {[%clk 0:00:25.4]} 32... Rxe2 {[%clk 0:00:09.8]}
33. Rxe2 {[%clk 0:00:24.9]} 33... Qf7 {[%clk 0:00:09]} 34. Ne6+ {[%clk
0:00:23.9]} 34... Kh8 {[%clk 0:00:07.3]} 35. Nxd8 {[%clk 0:00:24.2]} 1-0

[Event "Late-Titled-Tuesday-Blitz-March-19-2024"]
[Site "Chess.com"]
[Date "2024.03.19"]
[Round "1"]
[White "kleong12"]
[Black "Alex_Banzea"]
[Result "0-1"]
[WhiteElo "2008"]
[BlackElo "2581"]
[TimeControl "180+1"]
[EndTime "14:06:58 PDT"]
[Termination "Alex_Banzea won on time"]

1. d4 {[%clk 0:02:58.7]} 1... Nf6 {[%clk 0:02:56]} 2. Bf4 {[%clk 0:02:58.8]}
2... g6 {[%clk 0:02:55.2]} 3. Nf3 {[%clk 0:02:53.2]} 3... Bg7 {[%clk 0:02:54.7]}
4. e3 {[%clk 0:02:53.3]} 4... d6 {[%clk 0:02:54.3]} 5. Be2 {[%clk 0:02:52.7]}
5... Nh5 {[%clk 0:02:39.6]} 6. Bg5 {[%clk 0:02:49.6]} 6... h6 {[%clk 0:02:40.1]}
7. Bh4 {[%clk 0:02:49.1]} 7... g5 {[%clk 0:02:40.8]} 8. Bg3 {[%clk 0:02:48.8]}
8... Bf5 {[%clk 0:02:25.1]} 9. Nbd2 {[%clk 0:02:39]} 9... Nd7 {[%clk 0:02:04.7]}
10. e4 {[%clk 0:02:29]} 10... Bg6 {[%clk 0:01:59.7]} 11. c3 {[%clk 0:02:20.8]}
11... c5 {[%clk 0:01:45.5]} 12. O-O {[%clk 0:02:08.1]} 12... Nxg3 {[%clk
0:01:45.3]} 13. hxg3 {[%clk 0:02:06.7]} 13... O-O {[%clk 0:01:46.2]} 14. a4
{[%clk 0:01:45.4]} 14... cxd4 {[%clk 0:01:45.7]} 15. cxd4 {[%clk 0:01:44.8]}
15... Rc8 {[%clk 0:01:45.7]} 16. Qb3 {[%clk 0:01:35.6]} 16... Qb6 {[%clk
0:01:23.7]} 17. Qxb6 {[%clk 0:01:30.8]} 17... axb6 {[%clk 0:01:24.6]} 18. Rfc1
{[%clk 0:01:21.5]} 18... Nf6 {[%clk 0:00:36]} 19. e5 {[%clk 0:00:33.7]} 19...
Ne4 {[%clk 0:00:36.2]} 20. Nc4 {[%clk 0:00:30.1]} 20... dxe5 {[%clk 0:00:36.6]}
21. dxe5 {[%clk 0:00:20]} 21... Rcd8 {[%clk 0:00:29]} 22. Nxb6 {[%clk
0:00:17.7]} 22... Nd2 {[%clk 0:00:29.7]} 23. Nc4 {[%clk 0:00:09.7]} 23... Nb3
{[%clk 0:00:29.3]} 24. Rd1 {[%clk 0:00:08.8]} 24... Nxa1 {[%clk 0:00:29.2]} 25.
Rxa1 {[%clk 0:00:09]} 25... Bd3 {[%clk 0:00:26.9]} 26. Bxd3 {[%clk 0:00:04.9]}
26... Rxd3 {[%clk 0:00:27.8]} 27. Rc1 {[%clk 0:00:03.6]} 27... Rc8 {[%clk
0:00:27.5]} 28. Re1 {[%clk 0:00:02.3]} 28... Rxc4 {[%clk 0:00:26.9]} 29. e6
{[%clk 0:00:02.1]} 29... Rxa4 {[%clk 0:00:23.6]} 30. exf7+ {[%clk 0:00:01.8]}
30... Kxf7 {[%clk 0:00:24.5]} 0-1

[Event "Late-Titled-Tuesday-Blitz-March-19-2024"]
[Site "Chess.com"]
[Date "2024.03.19"]
[Round "1"]
[White "TenisMaster"]
[Black "MaxLeto"]
[Result "1-0"]
[WhiteElo "2854"]
[BlackElo "2498"]
[TimeControl "180+1"]
[EndTime "14:06:59 PDT"]
[Termination "TenisMaster won on time"]

1. e4 {[%clk 0:03:00.9]} 1... c5 {[%clk 0:02:29.3]} 2. Nf3 {[%clk 0:02:59.5]}
2... d6 {[%clk 0:02:29.6]} 3. d4 {[%clk 0:02:59.3]} 3... cxd4 {[%clk 0:02:30.5]}
4. Nxd4 {[%clk 0:02:59.6]} 4... Nf6 {[%clk 0:02:31.2]} 5. Nc3 {[%clk 0:03:00.1]}
5... a6 {[%clk 0:02:31.3]} 6. Be3 {[%clk 0:03:00.2]} 6... Ng4 {[%clk 0:02:29.6]}
7. Bc1 {[%clk 0:03:00]} 7... Nf6 {[%clk 0:02:28.9]} 8. f3 {[%clk 0:02:58.3]}
8... b5 {[%clk 0:02:28.9]} 9. a4 {[%clk 0:02:52.3]} 9... b4 {[%clk 0:02:26.4]}
10. Nd5 {[%clk 0:02:52.6]} 10... e6 {[%clk 0:02:18.2]} 11. Nxf6+ {[%clk
0:02:51.6]} 11... Qxf6 {[%clk 0:02:14.9]} 12. Be3 {[%clk 0:02:51]} 12... Bb7
{[%clk 0:02:11.1]} 13. Qd2 {[%clk 0:02:50.3]} 13... d5 {[%clk 0:02:10.1]} 14.
Bg5 {[%clk 0:02:28]} 14... Qe5 {[%clk 0:02:00.3]} 15. Bf4 {[%clk 0:02:21.1]}
15... Qh5 {[%clk 0:01:46.5]} 16. O-O-O {[%clk 0:02:03.5]} 16... Nd7 {[%clk
0:01:37.9]} 17. g4 {[%clk 0:02:02.6]} 17... Qg6 {[%clk 0:01:34.2]} 18. e5 {[%clk
0:01:49.1]} 18... Nc5 {[%clk 0:01:15.9]} 19. b3 {[%clk 0:01:18.8]} 19... Be7
{[%clk 0:01:13.3]} 20. Kb1 {[%clk 0:01:18.6]} 20... h5 {[%clk 0:01:09]} 21. Rg1
{[%clk 0:01:17.2]} 21... hxg4 {[%clk 0:01:04.7]} 22. Rxg4 {[%clk 0:01:17.1]}
22... Qh7 {[%clk 0:01:04]} 23. Qxb4 {[%clk 0:01:04.4]} 23... Kf8 {[%clk
0:00:55.2]} 24. Qb6 {[%clk 0:00:59.6]} 24... a5 {[%clk 0:00:40.2]} 25. Bb5
{[%clk 0:00:52.3]} 25... g6 {[%clk 0:00:25.4]} 26. Bg5 {[%clk 0:00:51.7]} 26...
Bxg5 {[%clk 0:00:21.1]} 27. Rxg5 {[%clk 0:00:52.6]} 27... Rc8 {[%clk 0:00:18.5]}
28. Nc6 {[%clk 0:00:45.2]} 28... Bxc6 {[%clk 0:00:07.5]} 29. Qxc5+ {[%clk
0:00:45]} 29... Kg7 {[%clk 0:00:07.4]} 30. Bxc6 {[%clk 0:00:45.7]} 30... Qh4
{[%clk 0:00:02.9]} 31. Rg4 {[%clk 0:00:40.8]} 31... Qxh2 {[%clk 0:00:01.3]} 32.
Qb6 {[%clk 0:00:32.1]} 32... Qxe5 {[%clk 0:00:01.8]} 33. Bb5 {[%clk 0:00:27.3]}
33... Qc3 {[%clk 0:00:01.2]} 34. Qd4+ {[%clk 0:00:26.5]} 1-0

[Event "Late-Titled-Tuesday-Blitz-March-19-2024"]
[Site "Chess.com"]
[Date "2024.03.19"]
[Round "1"]
[White "Likvidator228"]
[Black "nihalsarin"]
[Result "0-1"]
[WhiteElo "2570"]
[BlackElo "3178"]
[TimeControl "180+1"]
[EndTime "14:07:00 PDT"]
[Termination "nihalsarin won on time"]

1. d4 {[%clk 0:02:58.9]} 1... a6 {[%clk 0:02:58.4]} 2. c4 {[%clk 0:02:56.4]}
2... b5 {[%clk 0:02:55.9]} 3. e4 {[%clk 0:02:52.1]} 3... bxc4 {[%clk 0:02:50.4]}
4. Bxc4 {[%clk 0:02:51.7]} 4... e6 {[%clk 0:02:46.9]} 5. Nc3 {[%clk 0:02:49.8]}
5... Bb7 {[%clk 0:02:17.9]} 6. Nge2 {[%clk 0:02:40.8]} 6... Nf6 {[%clk
0:02:15.2]} 7. f3 {[%clk 0:02:28.8]} 7... d5 {[%clk 0:02:14.6]} 8. exd5 {[%clk
0:02:28.7]} 8... Nxd5 {[%clk 0:02:14.8]} 9. O-O {[%clk 0:02:28.1]} 9... Be7
{[%clk 0:02:14.5]} 10. Qb3 {[%clk 0:02:24.4]} 10... Nb6 {[%clk 0:02:11.3]} 11.
Bd3 {[%clk 0:02:23]} 11... O-O {[%clk 0:02:11.2]} 12. Be3 {[%clk 0:02:22]} 12...
Nc6 {[%clk 0:02:11.3]} 13. Rfd1 {[%clk 0:02:08.2]} 13... Nb4 {[%clk 0:02:10.5]}
14. Be4 {[%clk 0:02:04.2]} 14... Rb8 {[%clk 0:02:01.7]} 15. a3 {[%clk
0:02:00.6]} 15... N4d5 {[%clk 0:02:00.8]} 16. Bf2 {[%clk 0:02:00.3]} 16... Qd7
{[%clk 0:01:57]} 17. Rac1 {[%clk 0:01:58.7]} 17... h6 {[%clk 0:01:56.8]} 18. Qc2
{[%clk 0:01:50.5]} 18... Bg5 {[%clk 0:01:56.3]} 19. Nxd5 {[%clk 0:01:43.2]}
19... Bxd5 {[%clk 0:01:55.6]} 20. Bxd5 {[%clk 0:01:38.5]} 20... Nxd5 {[%clk
0:01:56.5]} 21. Rb1 {[%clk 0:01:35.6]} 21... Qb5 {[%clk 0:01:55]} 22. h4 {[%clk
0:01:18.9]} 22... Be7 {[%clk 0:01:48.5]} 23. Rdc1 {[%clk 0:00:39.7]} 23... Bd6
{[%clk 0:01:47.1]} 24. Nc3 {[%clk 0:00:23.8]} 24... Qc4 {[%clk 0:01:45.2]} 25.
Nxd5 {[%clk 0:00:24]} 25... Qxd5 {[%clk 0:01:44.5]} 26. Qc6 {[%clk 0:00:19.3]}
26... Qf5 {[%clk 0:01:37]} 27. b4 {[%clk 0:00:16.5]} 27... Qf4 {[%clk
0:01:36.9]} 28. Kf1 {[%clk 0:00:10.5]} 28... Qh2 {[%clk 0:01:30.8]} 29. Qxa6
{[%clk 0:00:08.8]} 29... Qh1+ {[%clk 0:01:29.1]} 30. Bg1 {[%clk 0:00:09.3]}
30... Bh2 {[%clk 0:01:25.3]} 31. Kf2 {[%clk 0:00:09.4]} 31... Bxg1+ {[%clk
0:01:25.7]} 32. Rxg1 {[%clk 0:00:10]} 32... Qxh4+ {[%clk 0:01:26.5]} 33. Ke2
{[%clk 0:00:09.4]} 33... Qxd4 {[%clk 0:01:24.4]} 34. Qd3 {[%clk 0:00:09.6]}
34... Qh4 {[%clk 0:01:12.9]} 35. Rgc1 {[%clk 0:00:08.7]} 35... Qg5 {[%clk
0:01:11.2]} 36. Kf2 {[%clk 0:00:08.1]} 36... Rfd8 {[%clk 0:01:10.8]} 37. Qf1
{[%clk 0:00:06.4]} 37... Rd2+ {[%clk 0:01:10.6]} 38. Kg1 {[%clk 0:00:07.1]}
38... Qe3+ {[%clk 0:01:04.6]} 39. Kh1 {[%clk 0:00:07.2]} 39... Rd5 {[%clk
0:01:00.1]} 40. g4 {[%clk 0:00:03]} 40... Qxa3 {[%clk 0:00:54.9]} 41. Rxc7
{[%clk 0:00:02.5]} 41... Rxb4 {[%clk 0:00:55.5]} 42. Rxb4 {[%clk 0:00:02.1]}
42... Qxb4 {[%clk 0:00:55.2]} 43. Rc8+ {[%clk 0:00:01.9]} 43... Kh7 {[%clk
0:00:55]} 0-1